{"text_format":"1","workbook":"xlsx","n_sheets":2,"sheets":["Cover","Nutzwertanalyse"],"not_rendered":{"charts":1,"images":0,"macros":1,"external_links":1,"defined_names":11,"comments":0,"pivot_tables":0},"unopened":[],"bounds":{"document_bytes":16777216,"sheet_cells":100000,"rows_first":2000,"rows_last":500,"rows_between":2000,"halvings":0,"cell_chars":16384,"cell_head_chars":4096},"cells_cut":0,"cells_raw":0,"read":"whole","date_system":"1900"}

{"sheet":"Cover","index":0,"n_rows":23,"n_cols":3,"rows_kept":23,"cut":false,"hidden":false,"merged":[]}
[]
[]
[null,"Excel + VBA "]
[null,"für Controller"]
[]
[]
[null,"Kapitel",9]
[null,"Thema","Strategisches Projekt-Controlling"]
[]
[null,"Inhalt","Nutzwert-Analyse"]
[]
[null,null," "]
[]
[]
[]
[]
[]
[null,"Version","1.0"]
[null,"Autor","Harald Nahrstedt"]
[null,"Datum","2025-04-27"]
[]
[]
[null,"Springer Verlag"]

{"sheet":"Nutzwertanalyse","index":1,"n_rows":16,"n_cols":9,"rows_kept":16,"cut":false,"hidden":false,"merged":[[0,2,3,2],[1,3,1,4],[1,5,1,6],[1,7,1,8],[0,3,0,8]]}
[null,null,"Gewichtung","Projektname"]
[null,null,null,"Alternative 1",null,"Alternative 2",null,"Alternative 3"]
[null,null,null,{"$f":"IF(COUNTIF(Grad1,\"N\")>0,\"Nicht OK\",\"OK\")","v":"Nicht OK"},null,{"$f":"IF(COUNTIF(Grad2,\"N\")>0,\"Nicht OK\",\"OK\")","v":"OK"},null,{"$f":"IF(COUNTIF(Grad3,\"N\")>0,\"Nicht OK\",\"OK\")","v":"OK"}]
[null,null,null,"Rang",{"$f":"RANK(E5,Grade)","v":1},"Rang",{"$f":"RANK(G5,Grade)","v":3},"Rang",{"$f":"RANK(I5,Grade)","v":2}]
["KO","Entscheidungskriterien",{"$f":"SUMIF(Gew,\"<>\"\"\")","v":335},"Grad",{"$f":"SUM(IF(ISNUMBER(Gew),Gew * Grad1,0))/GewSum/9","v":0.65174129353233834},"Grad",{"$f":"SUM(IF(ISNUMBER(Gew),Gew * Grad2,0))/GewSum/9","v":0.49751243781094523},"Grad",{"$f":"SUM(IF(ISNUMBER(Gew),Gew * Grad3,0))/GewSum/9","v":0.51907131011608632}]
[null,"Geringe Größe",50,8,{"$f":"IF(ISNUMBER(Gew),Gew*Grad1,\"\")","v":400},4,{"$f":"IF(ISNUMBER(Gew),Gew*Grad2,\"\")","v":200},8,{"$f":"IF(ISNUMBER(Gew),Gew*Grad3,\"\")","v":400}]
["x","Geringer Energieverbrauch",null,"N","","J","","J",""]
[null,"Lange Lebensdauer",25,2,50,8,200,9,225]
[null,"Einfache Bedienung",20,6,120,5,100,7,140]
[null,"Einfache Installation",55,8,440,5,275,2,110]
[null,"Gute Wartbarkeit",40,7,280,1,40,5,200]
["x","Niedrige Materialkosten",null,"J","","J","","J",""]
[null,"Hohe Festigkeit",65,3,195,4,260,3,195]
[null,"Kurze Entwicklungszeit",55,6,330,5,275,4,220]
["x","Ausbaufähig",null,"J","","J","","J",""]
[null,"Modular aufgebaut",25,6,150,6,150,3,75]